fUSD/lending_fUSD_20250311
["ID","MTS","AMOUNT","RATE_DAILY","PERIOD"]
[355908076,1741710643274,-581.87,8.887e-05,2]
[355908077,1741710643285,-500.0,8.887e-05,2]
[355908078,1741710643295,-500.0,8.887e-05,2]
[355908079,1741710643306,-500.0,8.887e-05,2]
[355908080,1741710643316,-500.0,8.887e-05,2]
[355908081,1741710643326,-500.0,8.887e-05,2]
[355908082,1741710643337,-500.0,8.887e-05,2]
[355908083,1741710643348,-1095.21,8.887e-05,2]
[355908084,1741710643359,-500.0,8.887e-05,2]
[355908085,1741710643370,-500.0,8.887e-05,2]
[355908086,1741710643380,-500.0,8.887e-05,2]
[355908087,1741710643390,-500.0,8.887e-05,2]
[355908088,1741710643399,-500.0,8.887e-05,2]
[355908089,1741710643408,-500.0,8.887e-05,2]
[355908090,1741710643418,-211.04946397,8.887e-05,2]
[355908091,1741710643432,-1058.93,8.887e-05,2]
[355908092,1741710643442,-500.0,8.887e-05,2]
[355908093,1741710643452,-500.0,8.887e-05,2]
[355908094,1741710643462,-500.0,8.887e-05,2]
[355908096,1741710643472,-500.0,8.887e-05,2]
[355908110,1741710643702,-500.0,8.887e-05,2]
[355908112,1741710643712,-500.0,8.887e-05,2]
[355908114,1741710643722,-500.0,8.887e-05,2]
[355908115,1741710643731,-500.0,8.887e-05,2]
[355908116,1741710643741,-500.0,8.887e-05,2]
[355908117,1741710643752,-500.0,8.887e-05,2]
[355908118,1741710643762,-1334.38,8.887e-05,2]
[355908119,1741710643773,-500.0,8.887e-05,2]
[355908120,1741710643784,-500.0,8.887e-05,2]
[355908121,1741710643794,-743.05,8.887e-05,2]
[355908122,1741710643804,-500.0,8.887e-05,2]
[355908123,1741710643814,-500.0,8.887e-05,2]
[355908124,1741710643823,-500.0,8.887e-05,2]
[355908125,1741710643833,-500.0,8.887e-05,2]
[355908126,1741710643843,-500.0,8.887e-05,2]
[355908127,1741710643853,-2201.42,8.887e-05,2]
[355908128,1741710643862,-500.0,8.887e-05,2]
[355908129,1741710643871,-511.73773383,8.887e-05,2]
[355908130,1741710643881,-500.0,8.887e-05,2]
[355908131,1741710643890,-690.33,8.887e-05,2]
[355908132,1741710643899,-590.15,8.887e-05,2]
[355908133,1741710643908,-500.0,8.887e-05,2]
[355908134,1741710643917,-500.0,8.887e-05,2]
[355908135,1741710643930,-466.0909181,8.887e-05,2]
[355908136,1741710643939,-500.0,8.887e-05,2]
[355908137,1741710643948,-500.0,8.887e-05,2]
[355908138,1741710643958,-414.33353336,8.887e-05,2]
[355908139,1741710643967,-791.4,8.887e-05,2]
[355908140,1741710643977,-500.0,8.887e-05,2]
[355908141,1741710643987,-500.0,8.887e-05,2]
[355908142,1741710643996,-500.0,8.887e-05,2]
[355908143,1741710644006,-500.0,8.887e-05,2]
[355908144,1741710644016,-500.0,8.887e-05,2]
[355908145,1741710644025,-500.0,8.887e-05,2]
[355908146,1741710644035,-500.0,8.887e-05,2]
[355908147,1741710644044,-500.0,8.887e-05,2]
[355908148,1741710644054,-500.0,8.887e-05,2]
[355908149,1741710644063,-500.0,8.887e-05,2]
[355908150,1741710644073,-500.0,8.887e-05,2]
[355908151,1741710644083,-2433.19,8.887e-05,2]
[355908152,1741710644097,-500.0,8.887e-05,2]
[355908153,1741710644106,-685.59,8.887e-05,2]
[355908154,1741710644116,-500.0,8.887e-05,2]
[355908155,1741710644125,-500.0,8.887e-05,2]
[355908156,1741710644137,-579.81,8.887e-05,2]
[355908157,1741710644147,-500.0,8.887e-05,2]
[355908158,1741710644157,-500.0,8.887e-05,2]
[355908159,1741710644167,-2078.06,8.887e-05,2]
[355908160,1741710644185,-1394.17,8.887e-05,2]
[355908161,1741710644204,-500.0,8.887e-05,2]
[355908162,1741710644215,-500.0,8.887e-05,2]
[355908163,1741710644225,-500.0,8.887e-05,2]
[355908164,1741710644235,-1592.4,8.887e-05,2]
[355908165,1741710644245,-500.0,8.887e-05,2]
[355908166,1741710644254,-500.0,8.887e-05,2]
[355908167,1741710644264,-500.0,8.887e-05,2]
[355908168,1741710644273,-500.0,8.887e-05,2]
[355908169,1741710644282,-1984.68,8.887e-05,2]
[355908170,1741710644291,-500.0,8.887e-05,2]
[355908171,1741710644301,-1217.09,8.887e-05,2]
[355908172,1741710644310,-500.0,8.887e-05,2]
[355908173,1741710644319,-500.0,8.887e-05,2]
[355908174,1741710644329,-500.0,8.887e-05,2]
[355908175,1741710644338,-2104.93,8.887e-05,2]
[355908176,1741710644348,-1433.82,8.887e-05,2]
[355908177,1741710644359,-300.0,8.887e-05,2]
[355908178,1741710644368,-500.0,8.887e-05,2]
[355908179,1741710644377,-500.0,8.887e-05,2]
[355908180,1741710644386,-500.0,8.887e-05,2]
[355908181,1741710644396,-500.0,8.887e-05,2]
[355908182,1741710644405,-500.0,8.887e-05,2]
[355908183,1741710644415,-500.0,8.887e-05,2]
[355908184,1741710644425,-537.1,8.887e-05,2]
[355908185,1741710644462,-500.0,8.887e-05,2]
[355908186,1741710644471,-500.0,8.887e-05,2]
[355908187,1741710644481,-815.05,8.887e-05,2]
[355908188,1741710644492,-500.0,8.887e-05,2]
[355908189,1741710644502,-500.0,8.887e-05,2]
[355908190,1741710644511,-2292.1,8.887e-05,2]
[355908191,1741710644520,-500.0,8.887e-05,2]
[355908192,1741710644530,-567.3,8.887e-05,2]
[355908193,1741710644539,-646.98,8.887e-05,2]
[355908194,1741710644549,-500.0,8.887e-05,2]
[355908195,1741710644559,-500.0,8.887e-05,2]
[355908196,1741710644569,-500.0,8.887e-05,2]
[355908197,1741710644578,-500.0,8.887e-05,2]
[355908198,1741710644587,-500.0,8.887e-05,2]
[355908199,1741710644597,-500.0,8.887e-05,2]
[355908200,1741710644607,-1541.95,8.887e-05,2]
[355908201,1741710644616,-500.0,8.887e-05,2]
[355908202,1741710644626,-500.0,8.887e-05,2]
[355908203,1741710644635,-500.0,8.887e-05,2]
[355908204,1741710644644,-500.0,8.887e-05,2]
[355908205,1741710644654,-643.81,8.887e-05,2]
[355908206,1741710644663,-500.0,8.887e-05,2]
[355908207,1741710644673,-503.5,8.887e-05,2]
[355908208,1741710644687,-735.35,8.887e-05,2]
[355908209,1741710644696,-787.74,8.887e-05,2]
[355908210,1741710644706,-500.0,8.887e-05,2]
[355908211,1741710644715,-500.0,8.887e-05,2]
[355908212,1741710644724,-500.0,8.887e-05,2]
[355908213,1741710644734,-500.0,8.887e-05,2]
[355908214,1741710644743,-500.0,8.887e-05,2]
[355908215,1741710644752,-500.0,8.887e-05,2]
[355908216,1741710644762,-1658.62,8.887e-05,2]
[355908217,1741710644771,-500.0,8.887e-05,2]
[355908218,1741710644780,-500.0,8.887e-05,2]
[355908219,1741710644789,-500.0,8.887e-05,2]
[355908220,1741710644799,-500.0,8.887e-05,2]
[355908221,1741710644808,-1185.63,8.887e-05,2]
[355908222,1741710644817,-2649.17,8.887e-05,2]
[355908223,1741710644826,-500.0,8.887e-05,2]
[355908224,1741710644840,-500.0,8.887e-05,2]
[355908225,1741710644850,-181.15844827,8.887e-05,2]
[355908226,1741710644859,-500.0,8.887e-05,2]
[355908227,1741710644869,-500.0,8.887e-05,2]
[355908228,1741710644878,-500.0,8.887e-05,2]
[355908229,1741710644888,-579.19,8.887e-05,2]
[355908230,1741710644897,-500.0,8.887e-05,2]
[355908231,1741710644907,-500.0,8.887e-05,2]
[355908232,1741710644916,-2007.97,8.887e-05,2]
[355908233,1741710644925,-500.0,8.887e-05,2]
[355908234,1741710644939,-500.0,8.887e-05,2]
[355908235,1741710644948,-508.69018351,8.887e-05,2]
[355908236,1741710644957,-771.83,8.887e-05,2]
[355908237,1741710644966,-1247.69,8.887e-05,2]
[355908238,1741710644976,-500.0,8.887e-05,2]
[355908239,1741710644985,-500.0,8.887e-05,2]
[355908240,1741710644995,-2567.83,8.887e-05,2]
[355908241,1741710645005,-555.83,8.887e-05,2]
[355908242,1741710645014,-629.6,8.887e-05,2]
[355908243,1741710645025,-501.8578411,8.887e-05,2]
[355908244,1741710645034,-835.04,8.887e-05,2]
[355908245,1741710645043,-500.0,8.887e-05,2]
[355908246,1741710645052,-500.0,8.887e-05,2]
[355908247,1741710645061,-500.0,8.887e-05,2]
[355908248,1741710645070,-628.8587077,8.887e-05,2]
[355908249,1741710645079,-500.0,8.887e-05,2]
[355908250,1741710645090,-500.0,8.887e-05,2]
[355908251,1741710645100,-500.0,8.887e-05,2]
[355908252,1741710645113,-500.0,8.887e-05,2]
[355908253,1741710645124,-522.35,8.887e-05,2]
[355908254,1741710645133,-545.98,8.887e-05,2]
[355908255,1741710645143,-500.0,8.887e-05,2]
[355908256,1741710645155,-500.0,8.887e-05,2]
[355908257,1741710645165,-509.31,8.887e-05,2]
[355908258,1741710645176,-500.0,8.887e-05,2]
[355908259,1741710645194,-500.0,8.887e-05,2]
[355908260,1741710645204,-500.0,8.887e-05,2]
[355908261,1741710645213,-500.0,8.887e-05,2]
[355908262,1741710645223,-540.19397145,8.887e-05,2]
[355908263,1741710645233,-500.0,8.887e-05,2]
[355908264,1741710645243,-500.0,8.887e-05,2]
[355908265,1741710645252,-500.0,8.887e-05,2]
[355908266,1741710645262,-500.0,8.887e-05,2]
[355908267,1741710645271,-930.72,8.887e-05,2]
[355908268,1741710645281,-698.23,8.887e-05,2]
[355908269,1741710645291,-500.0,8.887e-05,2]
[355908270,1741710645300,-903.54,8.887e-05,2]
[355908271,1741710645310,-500.0,8.887e-05,2]
[355908272,1741710645319,-1451.5,8.887e-05,2]
[355908273,1741710645328,-500.0,8.887e-05,2]
[355908274,1741710645338,-500.0,8.887e-05,2]
[355908275,1741710645347,-897.8,8.887e-05,2]
[355908276,1741710645357,-757.33,8.887e-05,2]
[355908277,1741710645367,-500.0,8.887e-05,2]
[355908278,1741710645377,-506.68632944,8.887e-05,2]
[355908279,1741710645387,-500.0,8.887e-05,2]
[355908280,1741710645397,-607.97,8.887e-05,2]
[355908281,1741710645406,-500.0,8.887e-05,2]
[355908282,1741710645416,-500.0,8.887e-05,2]
[355908283,1741710645426,-500.0,8.887e-05,2]
[355908284,1741710645438,-1178.74,8.887e-05,2]
[355908285,1741710645448,-500.0,8.887e-05,2]
[355908286,1741710645458,-678.56,8.887e-05,2]
[355908287,1741710645467,-500.0,8.887e-05,2]
[355908288,1741710645477,-500.0,8.887e-05,2]
[355908289,1741710645487,-643.04,8.887e-05,2]
[355908290,1741710645497,-504.35439115,8.887e-05,2]
[355908291,1741710645506,-500.0,8.887e-05,2]
[355908292,1741710645515,-511.57712225,8.887e-05,2]
[355908293,1741710645525,-525.42,8.887e-05,2]
[355908294,1741710645534,-1517.74,8.887e-05,2]
[355908295,1741710645543,-500.0,8.887e-05,2]
[355908296,1741710645553,-751.63,8.887e-05,2]
[355908297,1741710645563,-500.0,8.887e-05,2]
[355908298,1741710645573,-500.0,8.887e-05,2]
[355908299,1741710645582,-500.0,8.887e-05,2]
[355908300,1741710645592,-500.0,8.887e-05,2]
[355908301,1741710645601,-500.0,8.887e-05,2]
[355908302,1741710645610,-201.23903412,8.887e-05,2]
[355908303,1741710645620,-500.0,8.887e-05,2]
[355908304,1741710645629,-500.0,8.887e-05,2]
[355908305,1741710645638,-500.0,8.887e-05,2]
[355908306,1741710645648,-500.0,8.887e-05,2]
[355908307,1741710645658,-506.40415963,8.887e-05,2]
[355908308,1741710645668,-509.337573,8.887e-05,2]
[355908309,1741710645679,-500.0,8.887e-05,2]
[355908310,1741710645690,-500.0,8.887e-05,2]
[355908311,1741710645699,-500.0,8.887e-05,2]
[355908312,1741710645709,-2059.2,8.887e-05,2]
[355908313,1741710645719,-1583.31,8.887e-05,2]
[355908314,1741710645729,-500.0,8.887e-05,2]
[355908316,1741710645738,-859.76,8.887e-05,2]
[355908317,1741710645748,-500.0,8.887e-05,2]
[355908319,1741710645757,-1011.47,8.887e-05,2]
[355908320,1741710645767,-500.0,8.887e-05,2]
[355908321,1741710645776,-500.0,8.887e-05,2]
[355908322,1741710645786,-832.07,8.887e-05,2]
[355908323,1741710645796,-500.0,8.887e-05,2]
[355908324,1741710645805,-500.0,8.887e-05,2]
[355908325,1741710645815,-500.0,8.887e-05,2]
[355908326,1741710645825,-719.06,8.887e-05,2]
[355908327,1741710645835,-500.0,8.887e-05,2]
[355908328,1741710645845,-500.0,8.887e-05,2]
[355908329,1741710645855,-500.0,8.887e-05,2]
[355908330,1741710645864,-538.44,8.887e-05,2]
[355908331,1741710645874,-500.0,8.887e-05,2]
[355908332,1741710645884,-500.0,8.887e-05,2]
[355908333,1741710645894,-709.68,8.887e-05,2]
[355908334,1741710645903,-916.89,8.887e-05,2]
[355908335,1741710645913,-500.0,8.887e-05,2]
[355908336,1741710645922,-500.0,8.887e-05,2]
[355908337,1741710645935,-500.0,8.887e-05,2]
[355908338,1741710645944,-500.0,8.887e-05,2]
[355908339,1741710645954,-1833.41,8.887e-05,2]
[355908340,1741710645964,-500.0,8.887e-05,2]
[355908341,1741710645974,-502.87406312,8.887e-05,2]
[355908342,1741710645984,-2066.98,8.887e-05,2]
[355908343,1741710645994,-500.0,8.887e-05,2]
[355908344,1741710646003,-626.11,8.887e-05,2]
[355908345,1741710646013,-500.0,8.887e-05,2]
[355908346,1741710646023,-500.0,8.887e-05,2]
[355908347,1741710646033,-500.0,8.887e-05,2]
[355908348,1741710646043,-500.0,8.887e-05,2]
[355908349,1741710646053,-500.0,8.887e-05,2]
[355908350,1741710646063,-1988.93,8.887e-05,2]
[355908351,1741710646073,-500.0,8.887e-05,2]
[355908352,1741710646084,-500.0,8.887e-05,2]
[355908353,1741710646094,-500.0,8.887e-05,2]
[355908354,1741710646105,-500.0,8.887e-05,2]
[355908355,1741710646114,-500.0,8.887e-05,2]
[355908356,1741710646124,-500.0,8.887e-05,2]
[355908357,1741710646135,-500.0,8.887e-05,2]
[355908358,1741710646145,-507.44874437,8.887e-05,2]
[355908359,1741710646154,-1906.09,8.887e-05,2]
[355908360,1741710646163,-500.0,8.887e-05,2]
[355908361,1741710646173,-274.07132008,8.887e-05,2]
[355908362,1741710646187,-500.0,8.887e-05,2]
[355908363,1741710646197,-809.05,8.887e-05,2]
[355908364,1741710646206,-195.07888607,8.887e-05,2]
[355908365,1741710646282,-0.00818178,8.887e-05,2]
[355908366,1741710646293,-370.80323427,8.887e-05,2]
[355908367,1741710646377,-352.66530001,8.886e-05,2]
[355908368,1741710646389,-1560.84649311,8.886e-05,2]
[355908369,1741710646416,-4666.88820688,8.886e-05,2]
[355908370,1741710646426,-1808.01969788,8.887e-05,2]
[355908371,1741710646438,-2107.44,8.887e-05,2]
[355908372,1741710646448,-624.76,8.887e-05,2]
[355908373,1741710646458,-500.0,8.887e-05,2]
[355908375,1741710646467,-521.09457349,8.887e-05,2]
[355908376,1741710646477,-500.0,8.887e-05,2]
[355908377,1741710646486,-500.0,8.887e-05,2]
[355908379,1741710646495,-500.0,8.887e-05,2]
[355908380,1741710646504,-578.71,8.887e-05,2]
[355908381,1741710646514,-500.0,8.887e-05,2]
[355908382,1741710646523,-507.35838023,8.887e-05,2]
[355908383,1741710646532,-500.0,8.887e-05,2]
[355908384,1741710646542,-500.0,8.887e-05,2]
[355908385,1741710646552,-1479.12,8.887e-05,2]
[355908386,1741710646561,-500.0,8.887e-05,2]
[355908398,1741710646748,-500.0,8.887e-05,2]
[355908399,1741710646759,-500.0,8.887e-05,2]
[355908400,1741710646768,-1470.11,8.887e-05,2]
[355908401,1741710646778,-500.0,8.887e-05,2]
[355908402,1741710646787,-500.0,8.887e-05,2]
[355908403,1741710646796,-500.0,8.887e-05,2]
[355908404,1741710646806,-500.0,8.887e-05,2]
[355908405,1741710646815,-500.0,8.887e-05,2]
[355908406,1741710646825,-500.0,8.887e-05,2]
[355908407,1741710646833,-500.0,8.887e-05,2]
[355908408,1741710646843,-500.0,8.887e-05,2]
[355908409,1741710646852,-500.0,8.887e-05,2]
[355908410,1741710646861,-2404.16,8.887e-05,2]
[355908411,1741710646870,-814.55,8.887e-05,2]
[355908412,1741710646879,-500.0,8.887e-05,2]
[355908413,1741710646889,-163.996272,8.887e-05,2]
[355908414,1741710646898,-2210.68,8.887e-05,2]
[355908415,1741710646908,-513.58,8.887e-05,2]
[355908416,1741710646918,-500.0,8.887e-05,2]
[355908417,1741710646928,-649.31,8.887e-05,2]
[355908418,1741710646939,-2559.49,8.887e-05,2]
[355908419,1741710646949,-667.79,8.887e-05,2]
[355908420,1741710646958,-663.92,8.887e-05,2]
[355908421,1741710646968,-500.0,8.887e-05,2]
[355908422,1741710646978,-973.65,8.887e-05,2]
[355908423,1741710646987,-500.0,8.887e-05,2]
[355908424,1741710646997,-754.38,8.887e-05,2]
[355908425,1741710647006,-3058.06,8.887e-05,2]
[355908426,1741710647015,-500.0,8.887e-05,2]
[355908427,1741710647025,-336.03395073,8.887e-05,2]
[355908428,1741710647034,-558.75,8.887e-05,2]
[355908429,1741710647044,-624.49,8.887e-05,2]
[355908430,1741710647054,-500.0,8.887e-05,2]
[355908431,1741710647063,-531.52265146,8.887e-05,2]
[355908432,1741710647074,-500.0,8.887e-05,2]
[355908433,1741710647083,-2108.74,8.887e-05,2]
[355908434,1741710647093,-500.0,8.887e-05,2]
[355908435,1741710647104,-500.0,8.887e-05,2]
[355908436,1741710647114,-500.0,8.887e-05,2]
[355908437,1741710647123,-500.0,8.887e-05,2]
[355908438,1741710647133,-500.0,8.887e-05,7]
[355908439,1741710647143,-596.97,8.887e-05,2]
[355908440,1741710647152,-510.17,8.887e-05,2]
[355908441,1741710647161,-500.0,8.887e-05,2]
[355908442,1741710647171,-504.98656025,8.887e-05,2]
[355908443,1741710647184,-500.0,8.887e-05,2]
[355908444,1741710647193,-574.36,8.887e-05,2]
[355908445,1741710647203,-500.0,8.887e-05,2]
[355908446,1741710647212,-500.0,8.887e-05,2]
[355908447,1741710647221,-1479.56,8.887e-05,2]
[355908448,1741710647231,-1251.92,8.887e-05,2]
[355908449,1741710647240,-520.30408667,8.887e-05,2]
[355908450,1741710647251,-500.0,8.887e-05,2]
[355908451,1741710647260,-501.87310836,8.887e-05,2]
[355908452,1741710647270,-1000.0,8.887e-05,2]
[355908453,1741710647280,-1109.48,8.887e-05,2]
[355908454,1741710647290,-1552.53,8.887e-05,2]
[355908455,1741710647299,-500.0,8.887e-05,2]
[355908456,1741710647309,-500.0,8.887e-05,2]
[355908457,1741710647319,-466.2656026,8.887e-05,2]
[355908458,1741710647332,-912.6643974,8.887e-05,2]
[355908459,1741710647342,-1675.49,8.887e-05,2]
[355908460,1741710647351,-2451.31,8.887e-05,2]
[355908461,1741710647361,-1770.2,8.887e-05,2]
[355908462,1741710647371,-500.0,8.887e-05,2]
[355908463,1741710647381,-2050.6,8.887e-05,2]
[355908464,1741710647390,-520.48823623,8.887e-05,2]
[355908465,1741710647400,-500.0,8.887e-05,2]
[355908466,1741710647409,-251.954978,8.887e-05,2]
[355908467,1741710647418,-647.85,8.887e-05,2]
[355908468,1741710647427,-525.48,8.887e-05,2]
[355908469,1741710647438,-530.19,8.887e-05,2]
[355908470,1741710647447,-251.954978,8.887e-05,2]
[355908471,1741710647456,-1213.95,8.887e-05,2]
[355908472,1741710647466,-214.54722847,8.887e-05,2]
[355908473,1741710647475,-1650.52,8.887e-05,2]
[355908474,1741710647485,-604.65,8.887e-05,2]
[355908475,1741710647494,-1742.66,8.887e-05,2]
[355908476,1741710647504,-500.0,8.887e-05,2]
[355908477,1741710647513,-500.0,8.887e-05,2]
[355908478,1741710647521,-1333.29,8.887e-05,2]
[355908479,1741710647531,-821.88,8.887e-05,2]
[355908480,1741710647540,-151.0,8.887e-05,2]
[355908481,1741710647550,-500.0,8.887e-05,2]
[355908482,1741710647560,-500.0,8.887e-05,2]
[355908483,1741710647569,-1936.76684,8.887e-05,2]
[355908484,1741710647579,-1999.37,8.887e-05,2]
[355908485,1741710647588,-1936.76684,8.887e-05,2]
[355908486,1741710647598,-500.0,8.887e-05,2]
[355908487,1741710647607,-1148.66,8.887e-05,2]
[355908488,1741710647616,-500.0,8.887e-05,2]
[355908489,1741710647626,-1623.89,8.887e-05,2]
[355908490,1741710647635,-500.0,8.887e-05,2]
[355908491,1741710647645,-500.0,8.887e-05,2]
[355908492,1741710647654,-568.79,8.887e-05,2]
[355908493,1741710647664,-500.0,8.887e-05,2]
[355908494,1741710647673,-500.0,8.887e-05,2]
[355908495,1741710647685,-1698.46,8.887e-05,2]
[355908496,1741710647696,-559.99053113,8.887e-05,2]
[355908497,1741710647706,-500.0,8.887e-05,2]
[355908498,1741710647715,-500.0,8.887e-05,2]
[355908499,1741710647725,-500.0,8.887e-05,2]
[355908500,1741710647734,-1557.52,8.887e-05,2]
[355908501,1741710647744,-500.0,8.887e-05,2]
[355908502,1741710647754,-1258.81,8.887e-05,2]
[355908503,1741710647763,-500.0,8.887e-05,2]
[355908504,1741710647773,-500.0,8.887e-05,2]
[355908505,1741710647783,-622.05273028,8.887e-05,2]
[355908506,1741710647792,-500.0,8.887e-05,2]
[355908507,1741710647802,-1633.23,8.887e-05,2]
[355908508,1741710647812,-500.0,8.887e-05,2]
[355908509,1741710647821,-500.0,8.887e-05,2]
[355908510,1741710647831,-1402.46,8.887e-05,2]
[355908511,1741710647841,-1370.27,8.887e-05,2]
[355908512,1741710647850,-500.0,8.887e-05,2]
[355908513,1741710647860,-1985.49,8.887e-05,2]
[355908514,1741710647870,-500.0,8.887e-05,2]
[355908515,1741710647879,-500.0,8.887e-05,2]
[355908516,1741710647889,-500.0,8.887e-05,2]
[355908517,1741710647898,-500.0,8.887e-05,2]
[355908518,1741710647908,-1348.26,8.887e-05,2]
[355908519,1741710647917,-500.0,8.887e-05,2]
[355908520,1741710647927,-956.73,8.887e-05,2]
[355908521,1741710647938,-500.0,8.887e-05,2]
[355908522,1741710647947,-2348.45,8.887e-05,2]
[355908523,1741710647957,-2319.22,8.887e-05,2]
[355908524,1741710647967,-500.0,8.887e-05,2]
[355908525,1741710647975,-500.0,8.887e-05,2]
[355908526,1741710647985,-500.0,8.887e-05,2]
[355908527,1741710647995,-594.17,8.887e-05,2]
[355908528,1741710648004,-500.0,8.887e-05,2]
[355908529,1741710648013,-502.10475326,8.887e-05,2]
[355908530,1741710648023,-500.0,8.887e-05,2]
[355908531,1741710648032,-1372.05,8.887e-05,2]
[355908532,1741710648041,-500.0,8.887e-05,2]
[355908533,1741710648051,-580.37,8.887e-05,2]
[355908534,1741710648060,-500.0,8.887e-05,2]
[355908535,1741710648069,-505.65219262,8.887e-05,2]
[355908536,1741710648079,-987.88,8.887e-05,2]
[355908537,1741710648089,-945.59,8.887e-05,2]
[355908538,1741710648099,-500.0,8.887e-05,2]
[355908539,1741710648114,-500.0,8.887e-05,2]
[355908540,1741710648123,-1786.3,8.887e-05,2]
[355908541,1741710648133,-500.0,8.887e-05,2]
[355908542,1741710648143,-1097.91,8.887e-05,2]
[355908543,1741710648153,-1264.7,8.887e-05,2]
[355908544,1741710648163,-1116.87,8.887e-05,2]
[355908545,1741710648173,-527.6,8.887e-05,2]
[355908546,1741710648187,-2566.32,8.887e-05,2]
[355908547,1741710648199,-500.0,8.887e-05,2]
[355908548,1741710648208,-500.0,8.887e-05,2]
[355908549,1741710648217,-500.0,8.887e-05,2]
[355908550,1741710648227,-754.37,8.887e-05,2]
[355908551,1741710648238,-500.0,8.887e-05,2]
[355908552,1741710648247,-1168.94,8.887e-05,2]
[355908553,1741710648257,-1297.56,8.887e-05,2]
[355908554,1741710648267,-500.0,8.887e-05,2]
[355908555,1741710648277,-735.24,8.887e-05,2]
[355908556,1741710648286,-750.92,8.887e-05,2]
[355908557,1741710648296,-500.0,8.887e-05,2]
[355908558,1741710648305,-2148.21,8.887e-05,2]
[355908559,1741710648315,-1548.5703,8.889e-05,2]
[355908560,1741710648325,-6005.3079,8.89e-05,2]
[355908561,1741710648334,-1360.5717,8.89e-05,2]
[355908562,1741710648344,-2356.2935,8.89e-05,2]
[355908563,1741710648353,-139417.63599999,8.899e-05,2]
[355908564,1741710648363,-500.0,8.899e-05,2]
[355908565,1741710648373,-500.0,8.899e-05,2]
[355908566,1741710648383,-500.0,8.899e-05,2]
[355908567,1741710648393,-607.97,8.899e-05,2]
[355908568,1741710648403,-500.0,8.899e-05,2]
[355908569,1741710648412,-1470.11,8.899e-05,2]
[355908570,1741710648422,-821.88,8.899e-05,2]
[355908571,1741710648434,-300.0,8.9e-05,3]
[355908572,1741710648443,-1999.02,8.9e-05,2]
[355908573,1741710648452,-299.99,8.9e-05,2]
[355908574,1741710648461,-267.08,8.9e-05,2]
[355908575,1741710648471,-300.0,8.9e-05,3]
[355908576,1741710648482,-150.0,8.931e-05,2]
[355908577,1741710648492,-150.0,8.942e-05,2]
[355908578,1741710648501,-551.33663525,8.943e-05,2]
[355908579,1741710648511,-150.0,8.954e-05,2]
[355908580,1741710648520,-1835.0,8.959e-05,2]
[355908581,1741710648530,-250.17964307,8.973e-05,2]
[355908582,1741710648539,-2309.53,8.973e-05,2]
[355908583,1741710648549,-168.49078203,8.98e-05,2]
[355908584,1741710648559,-151.0,8.988e-05,2]
[355908585,1741710648568,-778418.60862487,8.988e-05,2]
[355908586,1741710648578,-590.0,8.989e-05,2]
[355908587,1741710648587,-500.0,8.989e-05,2]
[355908588,1741710648597,-504.6,8.989e-05,2]
[355908589,1741710648607,-605.76,8.989e-05,2]
[355908590,1741710648617,-500.0,8.989e-05,2]
[355908591,1741710648626,-500.0,8.989e-05,2]
[355908592,1741710648636,-2406.13,8.989e-05,2]
[355908593,1741710648645,-500.0,8.989e-05,2]
[355908594,1741710648654,-500.0,8.989e-05,2]
[355908595,1741710648664,-500.0,8.989e-05,2]
[355908596,1741710648673,-500.0,8.989e-05,2]
[355908597,1741710648685,-500.0,8.989e-05,2]
[355908598,1741710648694,-500.0,8.989e-05,2]
[355908599,1741710648703,-500.0,8.989e-05,2]
[355908600,1741710648713,-500.0,8.989e-05,2]
[355908601,1741710648722,-500.0,8.989e-05,2]
[355908602,1741710648731,-415.4890181,8.989e-05,2]
[355908603,1741710648786,-84.5109819,8.989e-05,2]
[355908604,1741710648795,-806.99,8.989e-05,2]
[355908605,1741710648805,-500.0,8.989e-05,2]
[355908606,1741710648816,-596.699518,8.989e-05,2]